[Event "AUT-ch U18-Open 2025"]
[Site "Fuerstenfeld"]
[Date "2025.04.15"]
[Round "4.1"]
[White "Balint, Peter"]
[Black "Leitgeb, Julian"]
[Result "1/2-1/2"]
[Annotator "RC"]
[ECO "B53"]
[WhiteElo "2366"]
[BlackElo "2313"]
[PlyCount "96"]
[EventDate "2025.04.12"]
[EventType "swiss"]
[EventCountry "AUT"]
[SourceTitle "playchess.com"]
[Source "ChessBase"]
[SourceQuality "1"]
[TimeControl "5400+30"]

1. e4 {[%emt 0:00:02]} c5 {[%emt 0:00:47]} 2. Nf3 {[%emt 0:00:04]} d6 {[%emt 0:00:24]} 3. Nc3 {[%emt 0:00:06]} a6 {[%emt 0:00:24]} 4. d4 {[%emt 0:00:05]} cxd4 {[%emt 0:00:05]} 5. Qxd4 {[%emt 0:00:04]} Nc6 {[%emt 0:00:19]} 6. Qe3 {[%emt 0:01:58]} g6 {[%emt 0:00:38]} 7. Be2 {[%emt 0:04:28]} Bh6 {[%emt 0:02:17]} 8. Qd3 {[%emt 0:00:29]} Bg7 {[%emt 0:00:09]} 9. O-O {[%emt 0:03:33]} Nf6 {[%emt 0:00:33]} 10. Nd5 {[%emt 0:01:33]} O-O {[%emt 0:05:04]} 11. c3 {[%emt 0:01:23]} Bg4 {[%emt 0:04:29]} 12. Bg5 {[%emt 0:00:51]} Nd7 {[%emt 0:06:07]} 13. Rfd1 {[%emt 0:04:00]} h6 {[%emt 0:02:36]} 14. Bf4 {[%emt 0:08:05]} Rc8 {[%emt 0:03:30]} 15. Qd2 {[%emt 0:09:11]} Kh7 {[%emt 0:02:05]} 16. h3 {[%emt 0:03:59]} Bxf3 {[%emt 0:05:07]} 17. Bxf3 {[%emt 0:00:44]} Nce5 {[%emt 0:04:26]} 18. Be2 {[%emt 0:01:01]} Nc5 {[%emt 0:10:26]} 19. Qc2 {[%emt 0:04:06]} b5 {[%emt 0:01:04]} 20. Bg3 {[%emt 0:05:42]} e6 {[%emt 0:07:01]} 21. Ne3 {[%emt 0:05:00]} Qb6 {[%emt 0:02:20]} 22. f4 {[%emt 0:08:25]} Nxe4 {[%emt 0:15:44]} 23. Qxe4 {[%emt 0:00:13]} f5 {[%emt 0:00:31]} 24. Qd4 {[%emt 0:00:08]} Nf3+ {[%emt 0:00:17]} 25. Bxf3 {[%emt 0:00:36]} Bxd4 {[%emt 0:00:03]} 26. cxd4 {[%emt 0:00:14]} g5 {[%emt 0:00:25]} 27. Kh2 {[%emt 0:04:22]} Rc7 {[%emt 0:04:36]} 28. h4 {[%emt 0:02:33]} gxf4 {[%emt 0:02:25]} 29. Bxf4 {[%emt 0:00:10]} Re7 {[%emt 0:01:12]} 30. Rac1 {[%emt 0:02:47]} Rc7 {[%emt 0:00:31]} 31. Ra1 {[%emt 0:01:45]} Re7 {[%emt 0:02:09]} 32. a4 {[%emt 0:01:18]} Qb8 {[%emt 0:04:04]} 33. axb5 {[%emt 0:00:27]} e5 {[%emt 0:01:00]} 34. Nd5 {[%emt 0:01:23]} Rg7 {[%emt 0:00:28]} 35. Bg3 {[%emt 0:00:39]} Qxb5 {[%emt 0:07:40]} 36. dxe5 {[%emt 0:00:39]} Rxg3 {[%emt 0:00:46]} 37. Kxg3 {[%emt 0:00:16]} dxe5 {[%emt 0:01:05]} 38. Rac1 {[%emt 0:00:21]} Qb8 {[%emt 0:01:27]} 39. Rc7+ {[%emt 0:07:45]} Kh8 {[%emt 0:00:01]} 40. Be2 {[%emt 0:13:26]} e4 {[%emt 0:00:16]} 41. Kf2 {[%emt 0:00:09]} Qxb2 {[%emt 0:00:45]} 42. Rd7 {[%emt 0:00:39]} f4 {[%emt 0:00:42]} 43. Ne7 {[%emt 0:03:37]} f3 {[%emt 0:01:10]} 44. Ng6+ {[%emt 0:00:13]} Kg8 {[%emt 0:00:01]} 45. Ne7+ {[%emt 0:00:07]} Kf7 {[%emt 0:03:43]} 46. Nc6+ {[%emt 0:03:35]} Kg8 {[%emt 0:01:56]} 47. Ne7+ {[%emt 0:00:13]} Kf7 {[%emt 0:00:03]} 48. Nc6+ {[%emt 0:00:04]} Kg8 {[%emt 0:01:06]} 1/2-1/2

[Event "AUT-ch U18-Open 2025"]
[Site "Fuerstenfeld"]
[Date "2025.04.15"]
[Round "4.2"]
[White "Jetzl, Julian"]
[Black "Gschiel, Alexander"]
[Result "1-0"]
[Annotator "RC"]
[ECO "D35"]
[WhiteElo "2146"]
[BlackElo "2317"]
[PlyCount "71"]
[EventDate "2025.04.12"]
[EventType "swiss"]
[EventCountry "AUT"]
[SourceTitle "playchess.com"]
[Source "ChessBase"]
[SourceQuality "1"]
[TimeControl "5400+30"]

1. d4 {[%emt 0:00:02]} d5 {[%emt 0:00:21]} 2. c4 {[%emt 0:00:15]} e6 {[%emt 0:00:27]} 3. Nc3 {[%emt 0:00:20]} Nf6 {[%emt 0:00:07]} 4. cxd5 {[%emt 0:00:38]} exd5 {[%emt 0:00:07]} 5. Bg5 {[%emt 0:00:08]} c6 {[%emt 0:00:33]} 6. e3 {[%emt 0:00:21]} Bd6 {[%emt 0:00:10]} 7. Bd3 {[%emt 0:00:25]} O-O {[%emt 0:00:23]} 8. Qc2 {[%emt 0:00:33]} h6 {[%emt 0:00:06]} 9. Bh4 {[%emt 0:00:05]} Re8 {[%emt 0:00:29]} 10. Nge2 {[%emt 0:00:23]} a5 {[%emt 0:00:19]} 11. h3 {[%emt 0:00:10]} Na6 {[%emt 0:00:23]} 12. a3 {[%emt 0:00:07]} Nc7 {[%emt 0:00:35]} 13. O-O {[%emt 0:00:45]} Ne6 {[%emt 0:00:13]} 14. f3 {[%emt 0:00:43]} Ng5 {[%emt 0:00:44]} 15. f4 {[%emt 0:01:07]} Nxh3+ {[%emt 0:12:03]} 16. gxh3 {[%emt 0:08:04]} Bxh3 {[%emt 0:01:35]} 17. Rf3 {[%emt 0:11:51]} Bg4 {[%emt 0:00:20]} 18. Bxf6 {[%emt 0:00:48]} Qxf6 {[%emt 0:00:06]} 19. Rg3 {[%emt 0:00:27]} h5 {[%emt 0:00:07]} 20. Nd1 {[%emt 0:08:30]} Qe6 {[%emt 0:05:53]} 21. Nec3 {[%emt 0:14:24]} f5 {[%emt 0:26:10]} 22. Nf2 {[%emt 0:16:09]} h4 {[%emt 0:02:57]} 23. Nxg4 {[%emt 0:01:09]} hxg3 {[%emt 0:04:23]} 24. Bxf5 {[%emt 0:00:18]} Qe7 {[%emt 0:00:05]} 25. Kg2 {[%emt 0:07:06]} Red8 {[%emt 0:10:49]} 26. Rh1 {[%emt 0:03:41]} Qf7 {[%emt 0:01:32]} 27. Qb1 {[%emt 0:10:56]} Bc7 {[%emt 0:04:20]} 28. Bg6 {[%emt 0:02:26]} Qe6 {[%emt 0:01:39]} 29. f5 {[%emt 0:00:24]} Qc8 {[%emt 0:00:54]} 30. Rh8+ {[%emt 0:00:27]} Kxh8 {[%emt 0:00:10]} 31. Qh1+ {[%emt 0:00:05]} Kg8 {[%emt 0:00:07]} 32. Qh7+ {[%emt 0:00:08]} Kf8 {[%emt 0:00:05]} 33. Qh8+ {[%emt 0:00:04]} Ke7 {[%emt 0:00:07]} 34. Qxg7+ {[%emt 0:00:06]} Kd6 {[%emt 0:00:05]} 35. Qe5+ {[%emt 0:00:08]} Kd7 {[%emt 0:00:04]} 36. Qe6# {[%emt 0:00:37]} 1-0

[Event "AUT-ch U18-Open 2025"]
[Site "Fuerstenfeld"]
[Date "2025.04.15"]
[Round "4.3"]
[White "Gold, Theodor"]
[Black "Wendl, Philipp"]
[Result "1/2-1/2"]
[Annotator "ChessBase"]
[ECO "C67"]
[WhiteElo "2066"]
[BlackElo "2268"]
[PlyCount "60"]
[EventDate "2025.04.12"]
[EventType "swiss"]
[EventCountry "AUT"]
[SourceTitle "playchess.com"]
[Source "ChessBase"]
[SourceQuality "1"]
[TimeControl "5400+30"]

1. e4 {[%emt 0:00:03]} e5 {[%emt 0:00:15]} 2. Nf3 {[%emt 0:00:09]} Nc6 {[%emt 0:00:06]} 3. Bb5 {[%emt 0:00:04]} Nf6 {[%emt 0:00:42]} 4. O-O {[%emt 0:05:16]} Nxe4 {[%emt 0:00:14]} 5. d4 {[%emt 0:00:34]} Nd6 {[%emt 0:00:05]} 6. dxe5 {[%emt 0:01:48]} Nxb5 {[%emt 0:00:08]} 7. a4 {[%emt 0:00:05]} d6 {[%emt 0:02:01]} 8. axb5 {[%emt 0:16:42]} Nxe5 {[%emt 0:01:07]} 9. Re1 {[%emt 0:08:18]} Be7 {[%emt 0:03:50]} 10. Nxe5 {[%emt 0:00:38]} dxe5 {[%emt 0:00:02]} 11. Qxd8+ {[%emt 0:00:40]} Kxd8 {[%emt 0:06:09]} 12. Rxe5 {[%emt 0:01:12]} Be6 {[%emt 0:08:23]} 13. Nc3 {[%emt 0:09:39]} b6 {[%emt 0:04:28]} 14. Bg5 {[%emt 0:06:07]} Bxg5 {[%emt 0:00:35]} 15. Rxg5 {[%emt 0:00:08]} g6 {[%emt 0:00:01]} 16. Ne2 {[%emt 0:08:05]} Kc8 {[%emt 0:04:43]} 17. Nd4 {[%emt 0:03:49]} Rd8 {[%emt 0:01:29]} 18. c3 {[%emt 0:00:31]} Kb7 {[%emt 0:04:38]} 19. b4 {[%emt 0:04:58]} Bc4 {[%emt 0:03:43]} 20. h4 {[%emt 0:04:55]} Re8 {[%emt 0:05:44]} 21. Kh2 {[%emt 0:01:58]} Re4 {[%emt 0:05:04]} 22. h5 {[%emt 0:04:49]} Rae8 {[%emt 0:02:31]} 23. hxg6 {[%emt 0:01:53]} hxg6 {[%emt 0:00:09]} 24. Kg3 {[%emt 0:01:20]} Re1 {[%emt 0:04:39]} 25. Ra3 {[%emt 0:01:52]} Rd1 {[%emt 0:06:00]} 26. Nc6 {[%emt 0:05:13]} Bxb5 {[%emt 0:02:22]} 27. Na5+ {[%emt 0:00:32]} bxa5 {[%emt 0:00:03]} 28. Rxb5+ {[%emt 0:00:06]} Kc8 {[%emt 0:02:22]} 29. Rbxa5 {[%emt 0:02:10]} Rd3+ {[%emt 0:00:12]} 30. f3 {[%emt 0:01:18]} Ree3 {[%emt 0:03:45]} 1/2-1/2

[Event "AUT-ch U18-Open 2025"]
[Site "Fuerstenfeld"]
[Date "2025.04.15"]
[Round "4.4"]
[White "Pedevilla, Luis"]
[Black "Gruenwald, Simon"]
[Result "0-1"]
[Annotator "NA"]
[ECO "B15"]
[WhiteElo "1925"]
[BlackElo "2101"]
[PlyCount "102"]
[EventDate "2025.04.12"]
[EventType "swiss"]
[EventCountry "AUT"]
[SourceTitle "playchess.com"]
[Source "ChessBase"]
[SourceQuality "1"]
[TimeControl "5400+30"]

1. e4 {[%emt 0:00:03]} c6 {[%emt 0:03:03]} 2. d4 {[%emt 0:00:14]} d5 {[%emt 0:00:02]} 3. Nc3 {[%emt 0:00:10]} dxe4 {[%emt 0:00:01]} 4. Nxe4 {[%emt 0:00:11]} Nf6 {[%emt 0:00:03]} 5. Nxf6+ {[%emt 0:00:11]} exf6 {[%emt 0:00:02]} 6. c3 {[%emt 0:00:12]} Bd6 {[%emt 0:00:03]} 7. Bd3 {[%emt 0:00:09]} O-O {[%emt 0:00:03]} 8. Qc2 {[%emt 0:00:08]} Re8+ {[%emt 0:00:01]} 9. Ne2 {[%emt 0:00:11]} h5 {[%emt 0:00:06]} 10. Be3 {[%emt 0:00:07]} Nd7 {[%emt 0:00:02]} 11. O-O-O {[%emt 0:00:11]} b5 {[%emt 0:00:02]} 12. d5 {[%emt 0:00:09]} c5 {[%emt 0:00:01]} 13. Bxb5 {[%emt 0:00:10]} Rb8 {[%emt 0:00:01]} 14. c4 {[%emt 0:00:11]} a6 {[%emt 0:00:01]} 15. Ba4 {[%emt 0:00:11]} Re5 {[%emt 0:00:01]} 16. Ng3 {[%emt 0:02:13]} Nb6 {[%emt 0:06:24]} 17. Bc6 {[%emt 0:02:29]} h4 {[%emt 0:19:14]} 18. Ne4 {[%emt 0:01:16]} Bf5 {[%emt 0:03:35]} 19. f3 {[%emt 0:00:27]} Qe7 {[%emt 0:22:11]} 20. Rhe1 {[%emt 0:42:41]} Bxe4 {[%emt 0:03:06]} 21. fxe4 {[%emt 0:00:08]} Rxe4 {[%emt 0:01:22]} 22. Bf2 {[%emt 0:03:42]} f5 {[%emt 0:09:13]} 23. Rxe4 {[%emt 0:11:41]} fxe4 {[%emt 0:01:18]} 24. Re1 {[%emt 0:03:52]} f5 {[%emt 0:04:04]} 25. b3 {[%emt 0:06:34]} Bxh2 {[%emt 0:05:51]} 26. Qc3 {[%emt 0:03:17]} Bd6 {[%emt 0:03:28]} 27. Rh1 {[%emt 0:02:10]} Qg5+ {[%emt 0:01:03]} 28. Kd1 {[%emt 0:01:25]} Qxg2 {[%emt 0:14:14]} 29. Rg1 {[%emt 0:00:52]} Qf3+ {[%emt 0:00:02]} 30. Qxf3 {[%emt 0:00:10]} exf3 {[%emt 0:00:01]} 31. Bxh4 {[%emt 0:10:17]} Kf7 {[%emt 0:00:52]} 32. Rf1 {[%emt 0:03:09]} Rh8 {[%emt 0:00:30]} 33. Bg5 {[%emt 0:00:38]} Kg6 {[%emt 0:05:03]} 34. Be3 {[%emt 0:01:30]} f4 {[%emt 0:00:46]} 35. Bf2 {[%emt 0:02:02]} Rh3 {[%emt 0:01:02]} 36. a4 {[%emt 0:01:27]} Nc8 {[%emt 0:01:05]} 37. b4 {[%emt 0:01:16]} cxb4 {[%emt 0:00:30]} 38. c5 {[%emt 0:00:06]} Be5 {[%emt 0:00:14]} 39. d6 {[%emt 0:01:07]} Nxd6 {[%emt 0:00:01]} 40. cxd6 {[%emt 0:00:10]} Bxd6 {[%emt 0:00:01]} 41. a5 {[%emt 0:01:59]} Kf6 {[%emt 0:01:34]} 42. Bd4+ {[%emt 0:01:35]} Be5 {[%emt 0:00:01]} 43. Bf2 {[%emt 0:00:40]} g5 {[%emt 0:00:41]} 44. Rg1 {[%emt 0:00:25]} b3 {[%emt 0:00:52]} 45. Bd5 {[%emt 0:00:43]} b2 {[%emt 0:00:12]} 46. Be4 {[%emt 0:00:03]} Bc3 {[%emt 0:00:54]} 47. Kc2 {[%emt 0:00:54]} Bxa5 {[%emt 0:00:33]} 48. Bd4+ {[%emt 0:00:11]} Ke6 {[%emt 0:00:01]} 49. Rxg5 {[%emt 0:00:25]} Rh2+ {[%emt 0:00:01]} 50. Kb1 {[%emt 0:00:09]} f2 {[%emt 0:00:50]} 51. Rxa5 {[%emt 0:01:00]} f1=Q+ {[%emt 0:00:10]} 0-1

[Event "AUT-ch U18-Open 2025"]
[Site "Fuerstenfeld"]
[Date "2025.04.15"]
[Round "4.5"]
[White "Mangeng, Lukas"]
[Black "Loretz, Jonas"]
[Result "1/2-1/2"]
[Annotator "NA"]
[ECO "D13"]
[WhiteElo "1688"]
[BlackElo "1869"]
[PlyCount "76"]
[EventDate "2025.04.12"]
[EventType "swiss"]
[EventCountry "AUT"]
[SourceTitle "playchess.com"]
[Source "ChessBase"]
[SourceQuality "1"]
[TimeControl "5400+30"]

1. d4 {[%emt 0:00:02]} d5 {[%emt 0:00:07]} 2. Nf3 {[%emt 0:00:19]} Nf6 {[%emt 0:00:25]} 3. Bf4 {[%emt 0:00:21]} c5 {[%emt 0:00:13]} 4. c3 {[%emt 0:00:12]} Nc6 {[%emt 0:00:50]} 5. e3 {[%emt 0:00:41]} e6 {[%emt 0:01:05]} 6. Bd3 {[%emt 0:00:44]} Bd6 {[%emt 0:02:36]} 7. O-O {[%emt 0:02:56]} Bxf4 {[%emt 0:05:06]} 8. exf4 {[%emt 0:00:03]} cxd4 {[%emt 0:00:52]} 9. cxd4 {[%emt 0:04:22]} O-O {[%emt 0:01:54]} 10. Nc3 {[%emt 0:01:13]} a6 {[%emt 0:03:47]} 11. Re1 {[%emt 0:03:17]} Qd6 {[%emt 0:03:05]} 12. Qd2 {[%emt 0:01:55]} b5 {[%emt 0:03:23]} 13. a3 {[%emt 0:00:52]} Bd7 {[%emt 0:04:39]} 14. b4 {[%emt 0:03:14]} Rfc8 {[%emt 0:03:39]} 15. Rac1 {[%emt 0:04:01]} Rc7 {[%emt 0:02:16]} 16. Bxb5 {[%emt 0:12:30]} Ne4 {[%emt 0:10:36]} 17. Nxe4 {[%emt 0:02:07]} dxe4 {[%emt 0:00:23]} 18. Bxc6 {[%emt 0:01:16]} Bxc6 {[%emt 0:02:14]} 19. Ne5 {[%emt 0:00:11]} Bd5 {[%emt 0:07:00]} 20. Rxc7 {[%emt 0:00:48]} Qxc7 {[%emt 0:00:11]} 21. Rc1 {[%emt 0:01:33]} Qd6 {[%emt 0:01:43]} 22. Qc3 {[%emt 0:01:25]} f6 {[%emt 0:01:36]} 23. Qc8+ {[%emt 0:03:41]} Qd8 {[%emt 0:01:14]} 24. Qxd8+ {[%emt 0:03:10]} Rxd8 {[%emt 0:00:06]} 25. Nc6 {[%emt 0:00:19]} Bxc6 {[%emt 0:04:35]} 26. Rxc6 {[%emt 0:00:04]} Rxd4 {[%emt 0:00:08]} 27. Kf1 {[%emt 0:02:45]} a5 {[%emt 0:03:06]} 28. b5 {[%emt 0:04:04]} a4 {[%emt 0:15:14]} 29. Rc1 {[%emt 0:06:35]} Rd3 {[%emt 0:01:39]} 30. b6 {[%emt 0:01:10]} Rb3 {[%emt 0:00:48]} 31. Rc8+ {[%emt 0:00:16]} Kf7 {[%emt 0:00:40]} 32. Rc7+ {[%emt 0:40:24]} Kg6 {[%emt 0:00:44]} 33. b7 {[%emt 0:00:00]} h5 {[%emt 0:03:04]} 34. g3 {[%emt 0:00:00]} Rb2 {[%emt 0:00:17]} 35. Rc4 {[%emt 0:00:00]} Rxb7 {[%emt 0:01:03]} 36. Rxe4 {[%emt 0:00:00]} Kf5 {[%emt 0:03:29]} 37. Rxa4 {[%emt 0:00:00]} Rb2 {[%emt 0:00:07]} 38. Kg2 {[%emt 0:00:00]} Ra2 {[%emt 0:15:36]} 1/2-1/2

[Event "AUT-ch U18-Open 2025"]
[Site "Fuerstenfeld"]
[Date "2025.04.15"]
[Round "4.6"]
[White "Hake, Nils"]
[Black "Zaytsev, Alexander"]
[Result "1/2-1/2"]
[Annotator "ChessBase"]
[ECO "D73"]
[WhiteElo "2054"]
[BlackElo "2178"]
[PlyCount "64"]
[EventDate "2025.04.12"]
[EventType "swiss"]
[EventCountry "AUT"]
[SourceTitle "playchess.com"]
[Source "ChessBase"]
[SourceQuality "1"]
[TimeControl "5400+30"]

1. Nf3 {[%emt 0:00:03]} Nf6 {[%emt 0:00:33]} 2. g3 {[%emt 0:00:19]} d5 {[%emt 0:01:38]} 3. Bg2 {[%emt 0:00:17]} g6 {[%emt 0:01:21]} 4. c4 {[%emt 0:00:50]} c6 {[%emt 0:04:20]} 5. O-O {[%emt 0:03:07]} Bg7 {[%emt 0:01:53]} 6. d4 {[%emt 0:01:27]} dxc4 {[%emt 0:08:59]} 7. a4 {[%emt 0:01:58]} a5 {[%emt 0:12:37]} 8. Na3 {[%emt 0:12:36]} O-O {[%emt 0:04:08]} 9. Nxc4 {[%emt 0:01:26]} Be6 {[%emt 0:01:41]} 10. Qc2 {[%emt 0:11:27]} Bd5 {[%emt 0:05:51]} 11. Re1 {[%emt 0:07:23]} b5 {[%emt 0:23:31]} 12. Ncd2 {[%emt 0:06:32]} Na6 {[%emt 0:12:07]} 13. e4 {[%emt 0:04:20]} Nb4 {[%emt 0:01:26]} 14. Qd1 {[%emt 0:02:40]} Be6 {[%emt 0:07:07]} 15. Bf1 {[%emt 0:01:32]} Qb6 {[%emt 0:02:50]} 16. Nb3 {[%emt 0:04:33]} Bg4 {[%emt 0:01:59]} 17. Bg2 {[%emt 0:04:00]} Rfd8 {[%emt 0:02:00]} 18. axb5 {[%emt 0:03:09]} cxb5 {[%emt 0:02:52]} 19. Bd2 {[%emt 0:11:29]} Ne8 {[%emt 0:02:07]} 20. Bc3 {[%emt 0:04:11]} Nc6 {[%emt 0:00:51]} 21. d5 {[%emt 0:07:02]} Bxc3 {[%emt 0:00:30]} 22. bxc3 {[%emt 0:00:02]} a4 {[%emt 0:00:37]} 23. Nbd2 {[%emt 0:01:59]} Ne5 {[%emt 0:00:19]} 24. Qb1 {[%emt 0:00:37]} Bxf3 {[%emt 0:00:33]} 25. Nxf3 {[%emt 0:01:03]} Nxf3+ {[%emt 0:00:20]} 26. Bxf3 {[%emt 0:00:04]} Qc5 {[%emt 0:00:16]} 27. Qb2 {[%emt 0:00:58]} Nd6 {[%emt 0:00:21]} 28. Reb1 {[%emt 0:01:16]} Rab8 {[%emt 0:00:51]} 29. Qc2 {[%emt 0:00:48]} Nc4 {[%emt 0:00:28]} 30. Rb4 {[%emt 0:00:32]} Na5 {[%emt 0:00:47]} 31. Qb2 {[%emt 0:02:24]} Nb3 {[%emt 0:00:32]} 32. Rb1 {[%emt 0:00:09]} Rdc8 {[%emt 0:00:33]} 1/2-1/2

[Event "AUT-ch U18-Open 2025"]
[Site "Fuerstenfeld"]
[Date "2025.04.15"]
[Round "4.7"]
[White "Archan, Elikya"]
[Black "Fitz, Jonathan David"]
[Result "1/2-1/2"]
[Annotator "NA"]
[ECO "D35"]
[WhiteElo "2048"]
[BlackElo "1918"]
[PlyCount "84"]
[EventDate "2025.04.12"]
[EventType "swiss"]
[EventCountry "AUT"]
[SourceTitle "playchess.com"]
[Source "ChessBase"]
[SourceQuality "1"]
[TimeControl "5400+30"]

1. d4 {[%emt 0:00:03]} Nf6 {[%emt 0:00:11]} 2. c4 {[%emt 0:00:04]} e6 {[%emt 0:00:06]} 3. Nc3 {[%emt 0:00:05]} d5 {[%emt 0:00:05]} 4. cxd5 {[%emt 0:00:07]} exd5 {[%emt 0:00:08]} 5. Bg5 {[%emt 0:00:06]} Be7 {[%emt 0:00:04]} 6. e3 {[%emt 0:00:07]} O-O {[%emt 0:00:13]} 7. Bd3 {[%emt 0:00:09]} c6 {[%emt 0:00:10]} 8. Nge2 {[%emt 0:00:13]} Re8 {[%emt 0:00:22]} 9. O-O {[%emt 0:00:32]} Nbd7 {[%emt 0:01:06]} 10. a4 {[%emt 0:00:14]} a5 {[%emt 0:01:49]} 11. Qc2 {[%emt 0:01:34]} h6 {[%emt 0:02:51]} 12. Bh4 {[%emt 0:00:07]} Ne4 {[%emt 0:02:30]} 13. Bxe7 {[%emt 0:01:43]} Qxe7 {[%emt 0:00:07]} 14. Bxe4 {[%emt 0:00:10]} dxe4 {[%emt 0:00:07]} 15. d5 {[%emt 0:00:14]} Nf6 {[%emt 0:04:12]} 16. dxc6 {[%emt 0:02:35]} bxc6 {[%emt 0:00:22]} 17. Rfd1 {[%emt 0:02:10]} Qe5 {[%emt 0:13:42]} 18. h3 {[%emt 0:03:58]} Rb8 {[%emt 0:08:41]} 19. Rd2 {[%emt 0:04:24]} Be6 {[%emt 0:16:08]} 20. Nd4 {[%emt 0:01:50]} Bd7 {[%emt 0:01:33]} 21. Rc1 {[%emt 0:07:56]} Qg5 {[%emt 0:03:42]} 22. Kh1 {[%emt 0:01:53]} Qh4 {[%emt 0:01:54]} 23. Kg1 {[%emt 0:28:41]} Re5 {[%emt 0:06:29]} 24. f4 {[%emt 0:07:27]} Rc5 {[%emt 0:11:08]} 25. Qd1 {[%emt 0:07:47]} Qg3 {[%emt 0:03:52]} 26. Qe1 {[%emt 0:01:24]} Qxe1+ {[%emt 0:03:13]} 27. Rxe1 {[%emt 0:00:02]} h5 {[%emt 0:02:39]} 28. Rc1 {[%emt 0:05:30]} Rb4 {[%emt 0:03:28]} 29. Rdc2 {[%emt 0:03:41]} Kf8 {[%emt 0:01:56]} 30. b3 {[%emt 0:06:06]} Bc8 {[%emt 0:02:04]} 31. Na2 {[%emt 0:01:45]} Rxc2 {[%emt 0:00:17]} 32. Rxc2 {[%emt 0:00:03]} Rb8 {[%emt 0:02:32]} 33. Rxc6 {[%emt 0:00:56]} Be6 {[%emt 0:01:55]} 34. Nxe6+ {[%emt 0:03:05]} fxe6 {[%emt 0:00:01]} 35. Nc1 {[%emt 0:00:16]} Rd8 {[%emt 0:01:31]} 36. Ne2 {[%emt 0:02:08]} Rd3 {[%emt 0:00:31]} 37. Kf2 {[%emt 0:03:14]} Rxb3 {[%emt 0:00:14]} 38. Ra6 {[%emt 0:01:15]} Nd5 {[%emt 0:00:33]} 39. Rxa5 {[%emt 0:00:11]} Rb2 {[%emt 0:01:26]} 40. Rc5 {[%emt 0:05:48]} Nb4 {[%emt 0:00:51]} 41. Rc8+ {[%emt 0:00:49]} Kf7 {[%emt 0:00:10]} 42. g4 {[%emt 0:00:33]} Nd3+ {[%emt 0:00:23]} 1/2-1/2

[Event "AUT-ch U18-Open 2025"]
[Site "Fuerstenfeld"]
[Date "2025.04.15"]
[Round "4.8"]
[White "Maier, Tobias"]
[Black "Kuti, Oliver"]
[Result "1-0"]
[Annotator "NA"]
[ECO "B51"]
[WhiteElo "1915"]
[BlackElo "2008"]
[PlyCount "65"]
[EventDate "2025.04.12"]
[EventType "swiss"]
[EventCountry "AUT"]
[SourceTitle "playchess.com"]
[Source "ChessBase"]
[SourceQuality "1"]
[TimeControl "5400+30"]

1. e4 {[%emt 0:01:26]} c5 {[%emt 0:00:04]} 2. Nf3 {[%emt 0:00:02]} d6 {[%emt 0:00:10]} 3. Bb5+ {[%emt 0:00:04]} Nd7 {[%emt 0:01:15]} 4. O-O {[%emt 0:00:16]} a6 {[%emt 0:00:09]} 5. Be2 {[%emt 0:00:05]} Ngf6 {[%emt 0:02:34]} 6. d3 {[%emt 0:00:03]} b5 {[%emt 0:04:35]} 7. Nfd2 {[%emt 0:08:36]} Bb7 {[%emt 0:03:10]} 8. f4 {[%emt 0:01:19]} g6 {[%emt 0:10:14]} 9. Bf3 {[%emt 0:00:29]} Qc7 {[%emt 0:01:25]} 10. a4 {[%emt 0:05:05]} Bg7 {[%emt 0:03:57]} 11. Nc3 {[%emt 0:05:13]} b4 {[%emt 0:01:54]} 12. Ne2 {[%emt 0:00:18]} O-O {[%emt 0:01:24]} 13. g4 {[%emt 0:02:19]} Nb8 {[%emt 0:04:28]} 14. Ng3 {[%emt 0:07:22]} Nc6 {[%emt 0:01:12]} 15. Bg2 {[%emt 0:01:18]} Nd7 {[%emt 0:15:36]} 16. Nc4 {[%emt 0:02:25]} Na5 {[%emt 0:03:29]} 17. Nxa5 {[%emt 0:09:10]} Qxa5 {[%emt 0:00:03]} 18. f5 {[%emt 0:05:16]} Nb6 {[%emt 0:08:01]} 19. g5 {[%emt 0:04:00]} Be5 {[%emt 0:05:06]} 20. f6 {[%emt 0:10:55]} exf6 {[%emt 0:02:20]} 21. gxf6 {[%emt 0:00:09]} Nd7 {[%emt 0:01:29]} 22. Bh6 {[%emt 0:20:50]} Bxb2 {[%emt 0:10:31]} 23. Rb1 {[%emt 0:03:15]} Bd4+ {[%emt 0:00:15]} 24. Kh1 {[%emt 0:00:11]} Rfe8 {[%emt 0:05:10]} 25. Nf5 {[%emt 0:02:37]} Bxf6 {[%emt 0:05:04]} 26. Nxd6 {[%emt 0:00:11]} Re5 {[%emt 0:05:17]} 27. Nxb7 {[%emt 0:01:17]} Qc7 {[%emt 0:00:59]} 28. Bf4 {[%emt 0:03:25]} Qxb7 {[%emt 0:00:02]} 29. Bxe5 {[%emt 0:00:27]} Bxe5 {[%emt 0:00:02]} 30. c3 {[%emt 0:00:37]} Qc7 {[%emt 0:02:48]} 31. d4 {[%emt 0:03:09]} Bxh2 {[%emt 0:00:46]} 32. e5 {[%emt 0:00:11]} Bg3 {[%emt 0:01:02]} 33. Qf3 {[%emt 0:01:10]} 1-0